[Event "Early-Titled-Tuesday-Blitz-March-19-2024"]
[Site "Chess.com"]
[Date "2024.03.19"]
[Round "10"]
[White "chess123456s"]
[Black "LeRoidesChampions"]
[Result "1/2-1/2"]
[WhiteElo "2550"]
[BlackElo "2648"]
[TimeControl "180+1"]
[EndTime "9:57:06 PDT"]
[Termination "Game drawn - insufficient material"]

1. d4 {[%clk 0:03:00.9]} 1... Nf6 {[%clk 0:02:58.7]} 2. Nc3 {[%clk 0:03:01.4]}
2... g6 {[%clk 0:02:59.6]} 3. Bf4 {[%clk 0:03:02]} 3... d5 {[%clk 0:02:59.4]} 4.
e3 {[%clk 0:02:59]} 4... Bg7 {[%clk 0:02:59.5]} 5. h4 {[%clk 0:02:59.3]} 5...
O-O {[%clk 0:03:00.1]} 6. h5 {[%clk 0:02:59.7]} 6... c5 {[%clk 0:03:00.7]} 7.
hxg6 {[%clk 0:02:58.2]} 7... hxg6 {[%clk 0:03:01.6]} 8. dxc5 {[%clk 0:02:55.6]}
8... Nc6 {[%clk 0:03:00]} 9. Nf3 {[%clk 0:02:55.4]} 9... Bg4 {[%clk 0:03:00.5]}
10. Be2 {[%clk 0:02:53]} 10... Qa5 {[%clk 0:02:50.2]} 11. Nd2 {[%clk 0:02:52.3]}
11... Bxe2 {[%clk 0:02:47.9]} 12. Qxe2 {[%clk 0:02:53.2]} 12... d4 {[%clk
0:02:40.4]} 13. Nb3 {[%clk 0:02:50.9]} 13... Qd8 {[%clk 0:02:26.2]} 14. O-O-O
{[%clk 0:02:47.3]} 14... dxc3 {[%clk 0:02:05.7]} 15. Rxd8 {[%clk 0:02:45.3]}
15... cxb2+ {[%clk 0:02:06]} 16. Kb1 {[%clk 0:02:41.8]} 16... Rfxd8 {[%clk
0:02:05.9]} 17. Bh6 {[%clk 0:02:40.9]} 17... Bh8 {[%clk 0:02:04.2]} 18. e4
{[%clk 0:02:35]} 18... a5 {[%clk 0:01:52.5]} 19. a4 {[%clk 0:02:30.8]} 19... Nd4
{[%clk 0:01:42.5]} 20. Qc4 {[%clk 0:01:57.7]} 20... Nxe4 {[%clk 0:01:33.2]} 21.
Be3 {[%clk 0:01:32.5]} 21... Nxb3 {[%clk 0:00:52.7]} 22. cxb3 {[%clk 0:01:00.5]}
22... Nc3+ {[%clk 0:00:23.6]} 23. Kxb2 {[%clk 0:00:59.2]} 23... Nd5+ {[%clk
0:00:22.9]} 24. Ka3 {[%clk 0:00:45.7]} 24... Bf6 {[%clk 0:00:19.2]} 25. Bd4
{[%clk 0:00:31.7]} 25... e5 {[%clk 0:00:12.4]} 26. Bc3 {[%clk 0:00:28.7]} 26...
Nxc3 {[%clk 0:00:07.6]} 27. Qxc3 {[%clk 0:00:28.8]} 27... Rac8 {[%clk
0:00:08.1]} 28. Qxa5 {[%clk 0:00:19.7]} 28... Be7 {[%clk 0:00:05.2]} 29. Rc1
{[%clk 0:00:20]} 29... Rd5 {[%clk 0:00:04.4]} 30. b4 {[%clk 0:00:19.6]} 30...
Rd3+ {[%clk 0:00:04.5]} 31. Kb2 {[%clk 0:00:19.7]} 31... e4 {[%clk 0:00:04.6]}
32. Qb6 {[%clk 0:00:17.9]} 32... Kg7 {[%clk 0:00:03.8]} 33. Qxb7 {[%clk
0:00:15.7]} 33... Bf6+ {[%clk 0:00:04.3]} 34. Ka2 {[%clk 0:00:15.7]} 34... Rd2+
{[%clk 0:00:04.5]} 35. Kb3 {[%clk 0:00:16]} 35... Rd3+ {[%clk 0:00:04.4]} 36.
Kc4 {[%clk 0:00:15.9]} 36... Rd4+ {[%clk 0:00:03.9]} 37. Kb5 {[%clk 0:00:16.3]}
37... Re8 {[%clk 0:00:03.6]} 38. a5 {[%clk 0:00:14.7]} 38... Rd2 {[%clk
0:00:02.6]} 39. a6 {[%clk 0:00:10.7]} 39... Rxf2 {[%clk 0:00:03]} 40. a7 {[%clk
0:00:10.3]} 40... Ra2 {[%clk 0:00:03.6]} 41. c6 {[%clk 0:00:08.6]} 41... e3
{[%clk 0:00:04.1]} 42. c7 {[%clk 0:00:08.7]} 42... Re5+ {[%clk 0:00:03.1]} 43.
Kc6 {[%clk 0:00:06.8]} 43... Re6+ {[%clk 0:00:02.9]} 44. Kd7 {[%clk 0:00:05.7]}
44... Rd2+ {[%clk 0:00:02.5]} 45. Qd5 {[%clk 0:00:05.3]} 45... Rxd5+ {[%clk
0:00:02.8]} 46. Kc8 {[%clk 0:00:05.9]} 46... Re8+ {[%clk 0:00:01.9]} 47. Kb7
{[%clk 0:00:06.5]} 47... Rb5+ {[%clk 0:00:02.5]} 48. Ka6 {[%clk 0:00:07.1]}
48... Rxb4 {[%clk 0:00:03]} 49. c8=Q {[%clk 0:00:07.7]} 49... Rxc8 {[%clk
0:00:03.6]} 50. Rxc8 {[%clk 0:00:08.6]} 50... Ra4+ {[%clk 0:00:04]} 51. Kb7
{[%clk 0:00:09]} 51... e2 {[%clk 0:00:04.4]} 52. Re8 {[%clk 0:00:09]} 52... Bd4
{[%clk 0:00:03.2]} 53. a8=Q {[%clk 0:00:07.9]} 53... Rxa8 {[%clk 0:00:03.8]} 54.
Kxa8 {[%clk 0:00:08.8]} 54... Kf6 {[%clk 0:00:04.2]} 55. Rxe2 {[%clk 0:00:09.4]}
55... Kf5 {[%clk 0:00:04.8]} 56. Kb7 {[%clk 0:00:10.1]} 56... Kg4 {[%clk
0:00:04.8]} 57. Kc6 {[%clk 0:00:10.7]} 57... f5 {[%clk 0:00:04.7]} 58. Kd5
{[%clk 0:00:11.2]} 58... Bg7 {[%clk 0:00:03.6]} 59. Ke6 {[%clk 0:00:11.4]} 59...
f4 {[%clk 0:00:03]} 60. Rc2 {[%clk 0:00:11.3]} 60... Bd4 {[%clk 0:00:03.2]} 61.
Kd5 {[%clk 0:00:11.1]} 61... Be3 {[%clk 0:00:03.5]} 62. Ke4 {[%clk 0:00:11.5]}
62... g5 {[%clk 0:00:04.4]} 63. Rc6 {[%clk 0:00:11]} 63... Kg3 {[%clk
0:00:04.9]} 64. Rg6 {[%clk 0:00:10.7]} 64... g4 {[%clk 0:00:05.5]} 65. Kf5
{[%clk 0:00:10.9]} 65... Kxg2 {[%clk 0:00:05.9]} 66. Rxg4+ {[%clk 0:00:10.3]}
66... Kf2 {[%clk 0:00:06.6]} 67. Ke4 {[%clk 0:00:10]} 67... f3 {[%clk
0:00:06.1]} 68. Rg8 {[%clk 0:00:10.3]} 68... Ke2 {[%clk 0:00:06.4]} 69. Rg3
{[%clk 0:00:09.5]} 69... f2 {[%clk 0:00:03.9]} 70. Rxe3+ {[%clk 0:00:09]} 70...
Kd2 {[%clk 0:00:04.6]} 71. Rf3 {[%clk 0:00:09]} 71... Ke2 {[%clk 0:00:05.2]} 72.
Re3+ {[%clk 0:00:09.2]} 72... Kd2 {[%clk 0:00:05.8]} 73. Rf3 {[%clk 0:00:07.4]}
73... Ke2 {[%clk 0:00:06.1]} 74. Rf4 {[%clk 0:00:07.3]} 74... f1=Q {[%clk
0:00:05.3]} 75. Rxf1 {[%clk 0:00:07.8]} 75... Kxf1 {[%clk 0:00:06.2]} 1/2-1/2

[Event "Early-Titled-Tuesday-Blitz-March-19-2024"]
[Site "Chess.com"]
[Date "2024.03.19"]
[Round "10"]
[White "AlessiaSanteramo"]
[Black "Lady_Nika"]
[Result "1-0"]
[WhiteElo "2311"]
[BlackElo "2557"]
[TimeControl "180+1"]
[EndTime "9:57:10 PDT"]
[Termination "AlessiaSanteramo won by checkmate"]

1. e4 {[%clk 0:03:00.9]} 1... e6 {[%clk 0:03:00.1]} 2. d4 {[%clk 0:02:59.2]}
2... d5 {[%clk 0:03:00.5]} 3. Nc3 {[%clk 0:02:49.3]} 3... Nf6 {[%clk 0:02:58.8]}
4. Bg5 {[%clk 0:02:48.4]} 4... Be7 {[%clk 0:02:58.9]} 5. e5 {[%clk 0:02:48.1]}
5... Nfd7 {[%clk 0:02:59.2]} 6. h4 {[%clk 0:02:47.9]} 6... h6 {[%clk 0:02:59.2]}
7. Bxe7 {[%clk 0:02:42.8]} 7... Qxe7 {[%clk 0:03:00.1]} 8. Qd2 {[%clk
0:02:43.2]} 8... a6 {[%clk 0:02:59.8]} 9. Nce2 {[%clk 0:02:43.3]} 9... c5 {[%clk
0:03:00.3]} 10. c3 {[%clk 0:02:43.4]} 10... Nc6 {[%clk 0:03:00.8]} 11. O-O-O
{[%clk 0:02:42.3]} 11... b5 {[%clk 0:03:01.2]} 12. f4 {[%clk 0:02:40.5]} 12...
Bb7 {[%clk 0:03:01.3]} 13. g4 {[%clk 0:02:40.4]} 13... O-O-O {[%clk 0:03:00.5]}
14. f5 {[%clk 0:02:39.8]} 14... Kb8 {[%clk 0:02:59.2]} 15. Nf3 {[%clk
0:02:36.8]} 15... Ka7 {[%clk 0:02:59.2]} 16. Bh3 {[%clk 0:02:36.4]} 16... Rb8
{[%clk 0:02:58.3]} 17. g5 {[%clk 0:02:26.5]} 17... Nb6 {[%clk 0:02:56]} 18. fxe6
{[%clk 0:02:19.8]} 18... fxe6 {[%clk 0:02:53.4]} 19. gxh6 {[%clk 0:02:19.9]}
19... Rxh6 {[%clk 0:02:52.8]} 20. Nf4 {[%clk 0:02:13.1]} 20... Rf8 {[%clk
0:02:49.9]} 21. Ng5 {[%clk 0:02:08.9]} 21... Nc4 {[%clk 0:02:47.9]} 22. Qh2
{[%clk 0:02:01.9]} 22... cxd4 {[%clk 0:02:43.5]} 23. Nfxe6 {[%clk 0:01:50.7]}
23... Rfh8 {[%clk 0:02:32.9]} 24. Nxd4 {[%clk 0:01:48]} 24... N6xe5 {[%clk
0:02:27.7]} 25. Nf5 {[%clk 0:01:45.5]} 25... Qc5 {[%clk 0:02:24]} 26. Nxh6
{[%clk 0:01:19]} 26... Rxh6 {[%clk 0:02:23.6]} 27. Ne6 {[%clk 0:01:18.5]} 27...
Qe3+ {[%clk 0:02:21.5]} 28. Kb1 {[%clk 0:01:18.7]} 28... Rxh4 {[%clk 0:02:19.7]}
29. Qg1 {[%clk 0:01:07.3]} 29... Nf3 {[%clk 0:02:07]} 30. Qxe3+ {[%clk
0:00:56.4]} 30... Nxe3 {[%clk 0:02:07.9]} 31. Rd3 {[%clk 0:00:56.4]} 31... d4
{[%clk 0:02:02.5]} 32. cxd4 {[%clk 0:00:40.5]} 32... Ng4 {[%clk 0:02:01.2]} 33.
Bg2 {[%clk 0:00:18.1]} 33... Ngh2 {[%clk 0:01:05.9]} 34. d5 {[%clk 0:00:11.3]}
34... Ne5 {[%clk 0:00:55.7]} 35. Rd2 {[%clk 0:00:06.9]} 35... Nc4 {[%clk
0:00:54.8]} 36. Rd3 {[%clk 0:00:05.1]} 36... Rh6 {[%clk 0:00:54.6]} 37. Nc5
{[%clk 0:00:04.5]} 37... Ba8 {[%clk 0:00:52.6]} 38. b3 {[%clk 0:00:03.8]} 38...
Nd6 {[%clk 0:00:50.7]} 39. Kb2 {[%clk 0:00:04]} 39... Ng4 {[%clk 0:00:46.4]} 40.
Rxh6 {[%clk 0:00:03.6]} 40... gxh6 {[%clk 0:00:46.6]} 41. Rg3 {[%clk 0:00:04.4]}
41... h5 {[%clk 0:00:46.9]} 42. Bf3 {[%clk 0:00:05]} 42... Kb6 {[%clk
0:00:44.5]} 43. Bxg4 {[%clk 0:00:05]} 43... hxg4 {[%clk 0:00:44]} 44. Nd7+
{[%clk 0:00:05.1]} 44... Kc7 {[%clk 0:00:44.3]} 45. Nf6 {[%clk 0:00:04.6]} 45...
Nf5 {[%clk 0:00:37.9]} 46. Rxg4 {[%clk 0:00:04.7]} 46... Kd6 {[%clk 0:00:36.3]}
47. Rg5 {[%clk 0:00:05]} 47... Ke5 {[%clk 0:00:31.8]} 48. Rg8 {[%clk 0:00:04]}
48... Bxd5 {[%clk 0:00:30]} 49. Nxd5 {[%clk 0:00:03.7]} 49... Kxd5 {[%clk
0:00:30.4]} 50. Ra8 {[%clk 0:00:03.9]} 50... Kc5 {[%clk 0:00:28.2]} 51. Rxa6
{[%clk 0:00:04.4]} 51... Nd4 {[%clk 0:00:28.6]} 52. Rf6 {[%clk 0:00:04.5]} 52...
Ne2 {[%clk 0:00:25.9]} 53. Rh6 {[%clk 0:00:05]} 53... Ng3 {[%clk 0:00:25.9]} 54.
Rh8 {[%clk 0:00:05.2]} 54... Ne4 {[%clk 0:00:25.7]} 55. Rc8+ {[%clk 0:00:05.6]}
55... Kb6 {[%clk 0:00:25.7]} 56. Rh8 {[%clk 0:00:06.5]} 56... Nc5 {[%clk
0:00:24.6]} 57. Rh6+ {[%clk 0:00:07.4]} 57... Kb7 {[%clk 0:00:20.9]} 58. Ka3
{[%clk 0:00:06.7]} 58... Nd3 {[%clk 0:00:20.7]} 59. Rd6 {[%clk 0:00:05.8]} 59...
Nc1 {[%clk 0:00:14.4]} 60. Kb2 {[%clk 0:00:04.1]} 60... Ne2 {[%clk 0:00:14.2]}
61. Ka3 {[%clk 0:00:04.1]} 61... Nc1 {[%clk 0:00:14.2]} 62. Kb4 {[%clk
0:00:04.8]} 62... Nxa2+ {[%clk 0:00:14]} 63. Kxb5 {[%clk 0:00:05.5]} 63... Nc3+
{[%clk 0:00:14.5]} 64. Kc4 {[%clk 0:00:05]} 64... Ne4 {[%clk 0:00:14.7]} 65. Re6
{[%clk 0:00:04.9]} 65... Nd2+ {[%clk 0:00:14]} 66. Kb4 {[%clk 0:00:05.4]} 66...
Nf3 {[%clk 0:00:13.9]} 67. Re7+ {[%clk 0:00:03.5]} 67... Kc6 {[%clk 0:00:13.9]}
68. Rf7 {[%clk 0:00:04.3]} 68... Ne5 {[%clk 0:00:13.9]} 69. Rf6+ {[%clk
0:00:04.6]} 69... Kb7 {[%clk 0:00:13.9]} 70. Rf5 {[%clk 0:00:04.6]} 70... Nd3+
{[%clk 0:00:13.3]} 71. Ka5 {[%clk 0:00:04.9]} 71... Nb2 {[%clk 0:00:12.5]} 72.
b4 {[%clk 0:00:04.7]} 72... Nc4+ {[%clk 0:00:12.7]} 73. Ka4 {[%clk 0:00:05.4]}
73... Kb6 {[%clk 0:00:12]} 74. Rf6+ {[%clk 0:00:05.3]} 74... Kb7 {[%clk
0:00:12.1]} 75. Kb5 {[%clk 0:00:06.1]} 75... Ne3 {[%clk 0:00:12.4]} 76. Rf7+
{[%clk 0:00:06.3]} 76... Kc8 {[%clk 0:00:12.4]} 77. Ka6 {[%clk 0:00:06.9]} 77...
Nc4 {[%clk 0:00:09.7]} 78. b5 {[%clk 0:00:06.5]} 78... Nd6 {[%clk 0:00:10.1]}
79. Rh7 {[%clk 0:00:06.8]} 79... Kb8 {[%clk 0:00:10.2]} 80. b6 {[%clk
0:00:07.1]} 80... Ne4 {[%clk 0:00:11.1]} 81. Rh8# {[%clk 0:00:07.2]} 1-0

[Event "Early-Titled-Tuesday-Blitz-March-19-2024"]
[Site "Chess.com"]
[Date "2024.03.19"]
[Round "10"]
[White "Vse_po_kaify"]
[Black "PepeCuenca"]
[Result "1/2-1/2"]
[WhiteElo "2495"]
[BlackElo "2729"]
[TimeControl "180+1"]
[EndTime "9:57:23 PDT"]
[Termination "Game drawn by repetition"]

1. e4 {[%clk 0:03:00.6]} 1... c5 {[%clk 0:02:59.3]} 2. c4 {[%clk 0:03:00.5]}
2... Nc6 {[%clk 0:02:59.4]} 3. Nc3 {[%clk 0:03:00.8]} 3... g6 {[%clk 0:02:59.4]}
4. g3 {[%clk 0:03:00.6]} 4... Bg7 {[%clk 0:02:59.3]} 5. Bg2 {[%clk 0:03:01.1]}
5... d6 {[%clk 0:02:56.6]} 6. Nge2 {[%clk 0:03:01.4]} 6... e6 {[%clk 0:02:56.9]}
7. O-O {[%clk 0:03:01.5]} 7... Nge7 {[%clk 0:02:57.2]} 8. d3 {[%clk 0:03:02.2]}
8... O-O {[%clk 0:02:57.2]} 9. f4 {[%clk 0:03:02.8]} 9... Rb8 {[%clk 0:02:55.6]}
10. h3 {[%clk 0:03:03.5]} 10... a6 {[%clk 0:02:54.7]} 11. Be3 {[%clk 0:03:03.6]}
11... Nd4 {[%clk 0:02:54.8]} 12. Qd2 {[%clk 0:03:03.4]} 12... b5 {[%clk
0:02:53.3]} 13. Rab1 {[%clk 0:03:02.6]} 13... b4 {[%clk 0:02:33.5]} 14. Nd1
{[%clk 0:02:54.4]} 14... Nxe2+ {[%clk 0:02:24.4]} 15. Qxe2 {[%clk 0:02:53.7]}
15... f5 {[%clk 0:02:24]} 16. g4 {[%clk 0:02:53.1]} 16... Qd7 {[%clk 0:02:21.1]}
17. exf5 {[%clk 0:02:51.4]} 17... gxf5 {[%clk 0:02:20.8]} 18. g5 {[%clk
0:02:43.1]} 18... Bb7 {[%clk 0:02:17.7]} 19. h4 {[%clk 0:02:38.3]} 19... Nc6
{[%clk 0:02:12]} 20. h5 {[%clk 0:02:35.6]} 20... Nd4 {[%clk 0:02:11.6]} 21. Qf2
{[%clk 0:02:35.6]} 21... Bc6 {[%clk 0:01:21.9]} 22. h6 {[%clk 0:02:31.9]} 22...
Bh8 {[%clk 0:01:21.5]} 23. Kh2 {[%clk 0:02:24.2]} 23... Bxg2 {[%clk 0:01:19]}
24. Qxg2 {[%clk 0:02:23.5]} 24... Qf7 {[%clk 0:01:18.7]} 25. Qh3 {[%clk
0:02:15.2]} 25... Qg6 {[%clk 0:01:15.4]} 26. Bxd4 {[%clk 0:02:00.4]} 26... Bxd4
{[%clk 0:01:15.1]} 27. Ne3 {[%clk 0:01:58.6]} 27... Kh8 {[%clk 0:01:05.9]} 28.
Ng2 {[%clk 0:01:58.1]} 28... Rbe8 {[%clk 0:00:56]} 29. Qf3 {[%clk 0:01:54.8]}
29... e5 {[%clk 0:00:39.6]} 30. Nh4 {[%clk 0:01:54.8]} 30... Qe6 {[%clk
0:00:39.7]} 31. Rbe1 {[%clk 0:01:50.9]} 31... e4 {[%clk 0:00:35.3]} 32. Qh5
{[%clk 0:01:32.6]} 32... Rg8 {[%clk 0:00:18.4]} 33. b3 {[%clk 0:01:30.3]} 33...
a5 {[%clk 0:00:15.5]} 34. Kh3 {[%clk 0:01:26.4]} 34... a4 {[%clk 0:00:14.4]} 35.
dxe4 {[%clk 0:01:26.5]} 35... fxe4+ {[%clk 0:00:14]} 36. f5 {[%clk 0:01:27.1]}
36... Qd7 {[%clk 0:00:10.5]} 37. g6 {[%clk 0:01:25.4]} 37... hxg6 {[%clk
0:00:10.7]} 38. Nxg6+ {[%clk 0:01:25.2]} 38... Kh7 {[%clk 0:00:11.3]} 39. Rf4
{[%clk 0:01:22.1]} 39... e3 {[%clk 0:00:10.3]} 40. Rg4 {[%clk 0:01:19]} 40...
axb3 {[%clk 0:00:10]} 41. axb3 {[%clk 0:01:14.1]} 41... Qf7 {[%clk 0:00:08.5]}
42. Re2 {[%clk 0:01:10.4]} 42... d5 {[%clk 0:00:07.6]} 43. cxd5 {[%clk
0:01:08.2]} 43... Qxd5 {[%clk 0:00:08.2]} 44. Nf8+ {[%clk 0:01:02.2]} 44...
Rexf8 {[%clk 0:00:06.1]} 45. Rg7+ {[%clk 0:01:02.4]} 45... Kh8 {[%clk 0:00:03]}
46. Reg2 {[%clk 0:01:00.3]} 46... Qxf5+ {[%clk 0:00:01.3]} 47. Qxf5 {[%clk
0:01:00.2]} 47... Rxf5 {[%clk 0:00:02.2]} 48. Rxg8+ {[%clk 0:00:58.4]} 48... Kh7
{[%clk 0:00:02.9]} 49. Re8 {[%clk 0:00:50.4]} 49... Kxh6 {[%clk 0:00:02.9]} 50.
Rg4 {[%clk 0:00:36.1]} 50... Rh5+ {[%clk 0:00:02.6]} 51. Kg3 {[%clk 0:00:36]}
51... Rf5 {[%clk 0:00:02]} 52. Rge4 {[%clk 0:00:34]} 52... Rg5+ {[%clk
0:00:02.3]} 53. Kf4 {[%clk 0:00:33.9]} 53... Rg6 {[%clk 0:00:02.3]} 54. Kf5
{[%clk 0:00:25.8]} 54... Rg5+ {[%clk 0:00:02.4]} 55. Ke6 {[%clk 0:00:23]} 55...
Rg6+ {[%clk 0:00:02.9]} 56. Kd5 {[%clk 0:00:22.3]} 56... Kg5 {[%clk 0:00:03.1]}
57. Rf8 {[%clk 0:00:20.1]} 57... Kh5 {[%clk 0:00:02.7]} 58. Kc4 {[%clk
0:00:19.3]} 58... Kg5 {[%clk 0:00:02.9]} 59. Kd3 {[%clk 0:00:19.4]} 59... Rg7
{[%clk 0:00:03]} 60. Ke2 {[%clk 0:00:19.3]} 60... Rg6 {[%clk 0:00:03.4]} 61. Rf3
{[%clk 0:00:18.8]} 61... Kh6 {[%clk 0:00:03]} 62. Re7 {[%clk 0:00:18.2]} 62...
Rg2+ {[%clk 0:00:02.9]} 63. Kd3 {[%clk 0:00:16.6]} 63... Rd2+ {[%clk 0:00:03.1]}
64. Kc4 {[%clk 0:00:16.8]} 64... Rf2 {[%clk 0:00:02.5]} 65. Rh3+ {[%clk
0:00:16.6]} 65... Kg5 {[%clk 0:00:02.5]} 66. Rh1 {[%clk 0:00:14.4]} 66... Kf4
{[%clk 0:00:02.4]} 67. Rhh7 {[%clk 0:00:13.8]} 67... Kf3 {[%clk 0:00:02.5]} 68.
Rhf7+ {[%clk 0:00:13.8]} 68... Ke2 {[%clk 0:00:03.1]} 69. Rxf2+ {[%clk
0:00:10.1]} 69... Kxf2 {[%clk 0:00:03.4]} 70. Kd3 {[%clk 0:00:10.7]} 70... Ke1
{[%clk 0:00:02.3]} 71. Rh7 {[%clk 0:00:04.8]} 71... Kf2 {[%clk 0:00:01.7]} 72.
Rf7+ {[%clk 0:00:04.6]} 72... Kg3 {[%clk 0:00:01.7]} 73. Rf8 {[%clk 0:00:04.3]}
73... Kg4 {[%clk 0:00:02.2]} 74. Rf7 {[%clk 0:00:04.8]} 74... Kg5 {[%clk
0:00:02.7]} 75. Rf8 {[%clk 0:00:05.2]} 75... Kg6 {[%clk 0:00:03.3]} 76. Rf3
{[%clk 0:00:05.4]} 76... Kg7 {[%clk 0:00:03.2]} 77. Rf1 {[%clk 0:00:03.7]} 77...
Kg6 {[%clk 0:00:03.7]} 78. Rf3 {[%clk 0:00:04.1]} 78... Kg5 {[%clk 0:00:04.2]}
79. Rf8 {[%clk 0:00:04.4]} 79... Kg4 {[%clk 0:00:04.6]} 80. Rf7 {[%clk
0:00:04.9]} 80... Kg3 {[%clk 0:00:04.8]} 81. Rf8 {[%clk 0:00:05.5]} 81... Kg2
{[%clk 0:00:05.1]} 82. Rf7 {[%clk 0:00:06]} 82... Kg3 {[%clk 0:00:05.3]} 1/2-1/2